[Event "January 2 Late 2024"]
[Site "https://www.chess.com"]
[Date "2024.01.02"]
[Round "3"]
[White "th3d4rkness"]
[Black "Jimenez Almeida, Luis David"]
[Result "0-1"]
[Board "167"]
[TimeControl "180+1"]
[BlackFideId "22242244"]
[WhiteElo "2161"]
[BlackElo "2516"]
[BlackTeam "ESP"]
[WhiteClock "0:00:00"]
[BlackClock "0:00:09"]

1. d4 {[%clk 0:03:00]}  g6 {[%clk 0:02:59]} 2. Nf3 {[%clk 0:02:59]}  Bg7 {[%clk 0:02:59]} 3. g3 {[%clk 0:02:59]}  f5 {[%clk 0:02:58]} 4. Bg2 {[%clk 0:02:59]}  Nf6 {[%clk 0:02:59]} 5. O-O {[%clk 0:02:59]}  O-O {[%clk 0:02:59]} 6. c4 {[%clk 0:02:54]}  d6 {[%clk 0:02:59]} 7. Nc3 {[%clk 0:02:53]}  Nc6 {[%clk 0:03:00]} 8. d5 {[%clk 0:02:53]}  Ne5 {[%clk 0:03:00]} 9. Nxe5 {[%clk 0:02:50]}  dxe5 {[%clk 0:03:01]} 10. e4 {[%clk 0:02:50]}  f4 {[%clk 0:03:01]} 11. gxf4 {[%clk 0:02:43]}  exf4 {[%clk 0:03:01]} 12. Bxf4 {[%clk 0:02:43]}  Nxe4 {[%clk 0:03:01]} 13. Bg3 {[%clk 0:02:26]}  Nxc3 {[%clk 0:02:40]} 14. bxc3 {[%clk 0:02:25]}  Bxc3 {[%clk 0:02:41]} 15. Rb1 {[%clk 0:02:17]}  Bf6 {[%clk 0:02:27]} 16. Re1 {[%clk 0:02:11]}  Rb8 {[%clk 0:02:19]} 17. c5 {[%clk 0:02:08]}  Bf5 {[%clk 0:02:15]} 18. Rc1 {[%clk 0:01:54]}  Qd7 {[%clk 0:02:07]} 19. d6 {[%clk 0:01:46]}  exd6 {[%clk 0:01:52]} 20. cxd6 {[%clk 0:01:45]}  c6 {[%clk 0:01:47]} 21. Qb3+ {[%clk 0:01:39]}  Kg7 {[%clk 0:01:45]} 22. Rcd1 {[%clk 0:01:31]}  Rbe8 {[%clk 0:01:42]} 23. Qa3 {[%clk 0:01:17]}  a6 {[%clk 0:01:42]} 24. Qc5 {[%clk 0:01:07]}  h5 {[%clk 0:01:37]} 25. h4 {[%clk 0:01:04]}  Bg4 {[%clk 0:01:34]} 26. Rb1 {[%clk 0:00:59]}  Rxe1+ {[%clk 0:01:21]} 27. Rxe1 {[%clk 0:00:59]}  Rf7 {[%clk 0:01:22]} 28. Qe3 {[%clk 0:00:56]}  Qd8 {[%clk 0:01:17]} 29. Qe8 {[%clk 0:00:55]}  Bxh4 {[%clk 0:01:09]} 30. Bxh4 {[%clk 0:00:47]}  Qxh4 {[%clk 0:01:08]} 31. Re7 {[%clk 0:00:38]}  Qxf2+ {[%clk 0:01:05]} 32. Kh1 {[%clk 0:00:38]}  Qh4+ {[%clk 0:00:58]} 33. Kg1 {[%clk 0:00:38]}  Qf2+ {[%clk 0:00:34]} 34. Kh1 {[%clk 0:00:37]}  Qf6 {[%clk 0:00:27]} 35. Rxf7+ {[%clk 0:00:26]}  Qxf7 {[%clk 0:00:28]} 36. Qe5+ {[%clk 0:00:27]}  Qf6 {[%clk 0:00:25]} 37. Qc5 {[%clk 0:00:18]}  h4 {[%clk 0:00:18]} 38. Qc4 {[%clk 0:00:13]}  Bd7 {[%clk 0:00:12]} 39. Qd3 {[%clk 0:00:11]}  h3 {[%clk 0:00:12]} 40. Be4 {[%clk 0:00:08]}  Qa1+ {[%clk 0:00:10]} 41. Kh2 {[%clk 0:00:08]}  Qxa2+ {[%clk 0:00:10]} 42. Kg3 {[%clk 0:00:08]}  Qe6 {[%clk 0:00:08]} 43. Qd4+ {[%clk 0:00:06]}  Qf6 {[%clk 0:00:08]} 44. Qd3 {[%clk 0:00:05]}  Qe5+ {[%clk 0:00:08]} 45. Kf2 {[%clk 0:00:03]}  a5 {[%clk 0:00:09]} 46. Bxg6 {[%clk 0:00:00]}  Qf6+ {[%clk 0:00:09]} 0-1

[Event "January 2 Late 2024"]
[Site "https://www.chess.com"]
[Date "2024.01.02"]
[Round "3"]
[White "Estrada Nieto, Julian"]
[Black "Novikova, Margarita"]
[Result "1-0"]
[Board "168"]
[TimeControl "180+1"]
[WhiteFideId "5101018"]
[BlackFideId "14109689"]
[WhiteElo "2516"]
[BlackElo "2145"]
[WhiteTeam "ESP"]
[BlackTeam "GER"]
[WhiteClock "0:00:15"]
[BlackClock "0:00:05"]

1. Nf3 {[%clk 0:03:00]}  Nf6 {[%clk 0:02:58]} 2. c4 {[%clk 0:02:59]}  c5 {[%clk 0:02:13]} 3. d4 {[%clk 0:02:51]}  cxd4 {[%clk 0:02:13]} 4. Nxd4 {[%clk 0:02:51]}  Nc6 {[%clk 0:02:13]} 5. Nc3 {[%clk 0:02:50]}  Nxd4 {[%clk 0:02:12]} 6. Qxd4 {[%clk 0:02:50]}  g6 {[%clk 0:02:13]} 7. g3 {[%clk 0:02:46]}  Bg7 {[%clk 0:02:11]} 8. Bg2 {[%clk 0:02:46]}  O-O {[%clk 0:02:11]} 9. O-O {[%clk 0:02:46]}  d6 {[%clk 0:02:11]} 10. Bg5 {[%clk 0:02:46]}  h6 {[%clk 0:02:10]} 11. Bd2 {[%clk 0:02:37]}  a6 {[%clk 0:01:54]} 12. Qd3 {[%clk 0:02:36]}  Qc7 {[%clk 0:01:52]} 13. Rac1 {[%clk 0:02:28]}  Bf5 {[%clk 0:01:46]} 14. e4 {[%clk 0:02:27]}  Be6 {[%clk 0:01:45]} 15. Nd5 {[%clk 0:02:27]}  Bxd5 {[%clk 0:01:43]} 16. cxd5 {[%clk 0:02:25]}  Qb6 {[%clk 0:01:42]} 17. Rc2 {[%clk 0:02:19]}  Rac8 {[%clk 0:01:41]} 18. Rfc1 {[%clk 0:02:19]}  Rxc2 {[%clk 0:01:36]} 19. Qxc2 {[%clk 0:02:18]}  Rd8 {[%clk 0:01:25]} 20. Be3 {[%clk 0:02:12]}  Qb5 {[%clk 0:01:18]} 21. Bf1 {[%clk 0:02:09]}  Qb4 {[%clk 0:01:17]} 22. Bd3 {[%clk 0:01:57]}  Ne8 {[%clk 0:01:07]} 23. b3 {[%clk 0:01:49]}  Qa3 {[%clk 0:01:03]} 24. h4 {[%clk 0:01:34]}  h5 {[%clk 0:01:02]} 25. Qd2 {[%clk 0:01:33]}  Qb2 {[%clk 0:00:47]} 26. Qxb2 {[%clk 0:01:27]}  Bxb2 {[%clk 0:00:46]} 27. Rc2 {[%clk 0:01:28]}  Bg7 {[%clk 0:00:43]} 28. Kg2 {[%clk 0:01:28]}  e6 {[%clk 0:00:38]} 29. dxe6 {[%clk 0:01:26]}  fxe6 {[%clk 0:00:39]} 30. Bc4 {[%clk 0:01:21]}  Kf7 {[%clk 0:00:39]} 31. f4 {[%clk 0:01:22]}  Ke7 {[%clk 0:00:39]} 32. Bd3 {[%clk 0:01:16]}  d5 {[%clk 0:00:38]} 33. exd5 {[%clk 0:01:14]}  exd5 {[%clk 0:00:36]} 34. Bxg6 {[%clk 0:01:12]}  d4 {[%clk 0:00:34]} 35. Bd2 {[%clk 0:01:11]}  d3 {[%clk 0:00:29]} 36. Rc1 {[%clk 0:01:11]}  Rd5 {[%clk 0:00:21]} 37. Be4 {[%clk 0:00:57]}  Rd7 {[%clk 0:00:18]} 38. Bf5 {[%clk 0:00:50]}  Rd5 {[%clk 0:00:17]} 39. Be4 {[%clk 0:00:48]}  Rd7 {[%clk 0:00:17]} 40. Re1 {[%clk 0:00:48]}  Kd8 {[%clk 0:00:17]} 41. Ba5+ {[%clk 0:00:46]}  Kc8 {[%clk 0:00:17]} 42. Rd1 {[%clk 0:00:43]}  Kb8 {[%clk 0:00:09]} 43. Rxd3 {[%clk 0:00:42]}  Re7 {[%clk 0:00:09]} 44. Bg6 {[%clk 0:00:37]}  Re2+ {[%clk 0:00:09]} 45. Kf3 {[%clk 0:00:35]}  Rxa2 {[%clk 0:00:08]} 46. Rd8+ {[%clk 0:00:35]}  Ka7 {[%clk 0:00:09]} 47. Be1 {[%clk 0:00:28]}  Nf6 {[%clk 0:00:07]} 48. Bf2+ {[%clk 0:00:26]}  b6 {[%clk 0:00:06]} 49. Bf5 {[%clk 0:00:14]}  Ra3 {[%clk 0:00:05]} 50. Be6 {[%clk 0:00:15]}  a5 {[%clk 0:00:04]} 51. Bd4 {[%clk 0:00:14]}  Ka6 {[%clk 0:00:04]} 52. Rd6 {[%clk 0:00:14]}  Kb5 {[%clk 0:00:04]} 53. Bxf6 {[%clk 0:00:12]}  Bxf6 {[%clk 0:00:04]} 54. Bc4+ {[%clk 0:00:13]}  Kc5 {[%clk 0:00:03]} 55. Rxf6 {[%clk 0:00:13]}  a4 {[%clk 0:00:04]} 56. Rf5+ {[%clk 0:00:12]}  Kd4 {[%clk 0:00:04]} 57. Rb5 {[%clk 0:00:12]}  axb3 {[%clk 0:00:03]} 58. Bxb3 {[%clk 0:00:13]}  Kc3 {[%clk 0:00:03]} 59. f5 {[%clk 0:00:12]}  Rxb3 {[%clk 0:00:03]} 60. Rxb3+ {[%clk 0:00:13]}  Kxb3 {[%clk 0:00:04]} 61. f6 {[%clk 0:00:14]}  Kc4 {[%clk 0:00:04]} 62. f7 {[%clk 0:00:13]}  b5 {[%clk 0:00:05]} 63. f8=Q {[%clk 0:00:13]}  b4 {[%clk 0:00:06]} 64. Qxb4+ {[%clk 0:00:12]}  Kxb4 {[%clk 0:00:06]} 65. g4 {[%clk 0:00:13]}  hxg4+ {[%clk 0:00:06]} 66. Kxg4 {[%clk 0:00:13]}  Kc5 {[%clk 0:00:07]} 67. Kg5 {[%clk 0:00:13]}  Kd6 {[%clk 0:00:08]} 68. Kg6 {[%clk 0:00:13]}  Ke7 {[%clk 0:00:08]} 69. Kg7 {[%clk 0:00:14]}  Ke6 {[%clk 0:00:09]} 70. h5 {[%clk 0:00:14]}  Kf5 {[%clk 0:00:10]} 71. h6 {[%clk 0:00:15]}  Kg5 {[%clk 0:00:05]} 72. h7 {[%clk 0:00:15]} 1-0

[Event "January 2 Late 2024"]
[Site "https://www.chess.com"]
[Date "2024.01.02"]
[Round "3"]
[White "Petr, Jan"]
[Black "Vlassov, Nikolai"]
[Result "1-0"]
[Board "175"]
[TimeControl "180+1"]
[WhiteFideId "345784"]
[BlackFideId "4103360"]
[WhiteElo "2379"]
[BlackElo "2652"]
[WhiteTeam "CZE"]
[BlackTeam "FID"]
[WhiteClock "0:00:45"]
[BlackClock "0:01:20"]

1. e4 {[%clk 0:02:59]}  Nc6 {[%clk 0:02:59]} 2. Nf3 {[%clk 0:02:59]}  d5 {[%clk 0:02:59]} 3. exd5 {[%clk 0:02:55]}  Qxd5 {[%clk 0:03:00]} 4. Nc3 {[%clk 0:02:55]}  Qa5 {[%clk 0:03:00]} 5. Bc4 {[%clk 0:02:55]}  Bg4 {[%clk 0:03:00]} 6. h3 {[%clk 0:02:55]}  Bh5 {[%clk 0:03:00]} 7. d3 {[%clk 0:02:33]}  O-O-O {[%clk 0:02:59]} 8. Bd2 {[%clk 0:02:33]}  Ne5 {[%clk 0:02:40]} 9. g4 {[%clk 0:01:50]}  Nxc4 {[%clk 0:02:35]} 10. dxc4 {[%clk 0:01:51]}  Bg6 {[%clk 0:02:34]} 11. Qe2 {[%clk 0:01:42]}  Bxc2 {[%clk 0:02:16]} 12. Nd5 {[%clk 0:01:42]}  Qa4 {[%clk 0:02:04]} 13. b3 {[%clk 0:01:16]}  Bxb3 {[%clk 0:02:00]} 14. Qe5 {[%clk 0:01:16]}  Rd6 {[%clk 0:01:56]} 15. axb3 {[%clk 0:01:15]}  Rxd5 {[%clk 0:01:38]} 16. Rxa4 {[%clk 0:00:53]}  Rxe5+ {[%clk 0:01:37]} 17. Nxe5 {[%clk 0:00:54]}  Nf6 {[%clk 0:01:31]} 18. Nxf7 {[%clk 0:00:47]}  Rg8 {[%clk 0:01:30]} 19. Rxa7 {[%clk 0:00:47]}  e6 {[%clk 0:01:29]} 20. Ra8+ {[%clk 0:00:44]}  Kd7 {[%clk 0:01:20]} 21. Ne5+ {[%clk 0:00:45]} 1-0

[Event "January 2 Late 2024"]
[Site "https://www.chess.com"]
[Date "2024.01.02"]
[Round "3"]
[White "Bernat, David"]
[Black "Zavgorodniy, Sergiy"]
[Result "1-0"]
[Board "176"]
[TimeControl "180+1"]
[WhiteFideId "2099225"]
[BlackFideId "14110148"]
[WhiteElo "2355"]
[BlackElo "2612"]
[WhiteTeam "USA"]
[BlackTeam "UKR"]
[WhiteClock "0:00:08"]
[BlackClock "0:00:34"]

1. c4 {[%clk 0:03:00]}  c5 {[%clk 0:02:58]} 2. Nc3 {[%clk 0:03:00]}  Nc6 {[%clk 0:02:59]} 3. g3 {[%clk 0:03:00]}  g6 {[%clk 0:02:58]} 4. Bg2 {[%clk 0:03:01]}  Bg7 {[%clk 0:02:58]} 5. e4 {[%clk 0:03:00]}  e6 {[%clk 0:02:58]} 6. Nge2 {[%clk 0:03:01]}  Nge7 {[%clk 0:02:59]} 7. O-O {[%clk 0:03:02]}  O-O {[%clk 0:03:00]} 8. d3 {[%clk 0:03:02]}  Nd4 {[%clk 0:02:59]} 9. Be3 {[%clk 0:03:02]}  Nec6 {[%clk 0:03:00]} 10. a3 {[%clk 0:03:02]}  d6 {[%clk 0:02:59]} 11. Rb1 {[%clk 0:02:57]}  a5 {[%clk 0:02:58]} 12. Nb5 {[%clk 0:02:56]}  Nxb5 {[%clk 0:02:56]} 13. cxb5 {[%clk 0:02:57]}  Nd4 {[%clk 0:02:56]} 14. a4 {[%clk 0:02:57]}  b6 {[%clk 0:02:52]} 15. Nxd4 {[%clk 0:02:41]}  cxd4 {[%clk 0:02:51]} 16. Bd2 {[%clk 0:02:42]}  e5 {[%clk 0:02:51]} 17. Rc1 {[%clk 0:02:41]}  Bb7 {[%clk 0:02:50]} 18. f4 {[%clk 0:02:35]}  f5 {[%clk 0:02:44]} 19. Qb3+ {[%clk 0:01:53]}  Kh8 {[%clk 0:02:43]} 20. exf5 {[%clk 0:01:52]}  Bxg2 {[%clk 0:02:43]} 21. Kxg2 {[%clk 0:01:53]}  gxf5 {[%clk 0:02:37]} 22. Qd5 {[%clk 0:01:52]}  Qe7 {[%clk 0:02:34]} 23. Rfe1 {[%clk 0:01:18]}  Rae8 {[%clk 0:02:29]} 24. Rc6 {[%clk 0:01:12]}  e4 {[%clk 0:02:29]} 25. dxe4 {[%clk 0:01:07]}  fxe4 {[%clk 0:02:29]} 26. Rxd6 {[%clk 0:00:54]}  e3 {[%clk 0:02:28]} 27. Rd7 {[%clk 0:00:43]}  exd2 {[%clk 0:01:51]} 28. Rdxe7 {[%clk 0:00:22]}  Rxe7 {[%clk 0:01:50]} 29. Rd1 {[%clk 0:00:21]}  Re2+ {[%clk 0:01:45]} 30. Kh3 {[%clk 0:00:15]}  h6 {[%clk 0:01:35]} 31. Qf3 {[%clk 0:00:15]}  Rfe8 {[%clk 0:01:31]} 32. Qc6 {[%clk 0:00:08]}  R8e3 {[%clk 0:01:21]} 33. Qc8+ {[%clk 0:00:06]}  Kh7 {[%clk 0:01:21]} 34. Qf5+ {[%clk 0:00:07]}  Kg8 {[%clk 0:01:20]} 35. Qc8+ {[%clk 0:00:07]}  Kh7 {[%clk 0:01:14]} 36. Qc2+ {[%clk 0:00:07]}  Kh8 {[%clk 0:01:14]} 37. Rxd2 {[%clk 0:00:08]}  Rxd2 {[%clk 0:01:13]} 38. Qxd2 {[%clk 0:00:09]}  Rb3 {[%clk 0:01:11]} 39. Qc2 {[%clk 0:00:06]}  Rb4 {[%clk 0:01:11]} 40. Qc8+ {[%clk 0:00:07]}  Kh7 {[%clk 0:01:11]} 41. Qf5+ {[%clk 0:00:07]}  Kh8 {[%clk 0:01:11]} 42. Qc8+ {[%clk 0:00:06]}  Kh7 {[%clk 0:01:12]} 43. f5 {[%clk 0:00:06]}  d3 {[%clk 0:01:07]} 44. Qe6 {[%clk 0:00:06]}  d2 {[%clk 0:01:01]} 45. Qg6+ {[%clk 0:00:06]}  Kh8 {[%clk 0:00:56]} 46. f6 {[%clk 0:00:06]}  Bf8 {[%clk 0:00:48]} 47. f7 {[%clk 0:00:05]}  Bg7 {[%clk 0:00:46]} 48. Qd6 {[%clk 0:00:06]}  Rd4 {[%clk 0:00:46]} 49. Qb8+ {[%clk 0:00:05]}  Kh7 {[%clk 0:00:46]} 50. Qg8+ {[%clk 0:00:06]}  Kg6 {[%clk 0:00:46]} 51. f8=Q {[%clk 0:00:06]}  Rd7 {[%clk 0:00:37]} 52. Qe6+ {[%clk 0:00:06]}  Kh7 {[%clk 0:00:37]} 53. Qff5+ {[%clk 0:00:07]}  Kh8 {[%clk 0:00:37]} 54. Qxd7 {[%clk 0:00:07]}  d1=Q {[%clk 0:00:34]} 55. Qxd1 {[%clk 0:00:08]} 1-0

[Event "January 2 Late 2024"]
[Site "https://www.chess.com"]
[Date "2024.01.02"]
[Round "3"]
[White "Dubreuil, Julien"]
[Black "Antunez Soler, Luis"]
[Result "0-1"]
[Board "177"]
[TimeControl "180+1"]
[WhiteFideId "621285"]
[BlackFideId "3513335"]
[WhiteElo "2347"]
[BlackElo "2609"]
[WhiteTeam "FRA"]
[BlackTeam "CUB"]
[WhiteClock "0:00:13"]
[BlackClock "0:00:14"]

1. e4 {[%clk 0:03:00]}  e6 {[%clk 0:02:59]} 2. d4 {[%clk 0:03:00]}  d5 {[%clk 0:02:59]} 3. e5 {[%clk 0:03:00]}  c5 {[%clk 0:03:00]} 4. c3 {[%clk 0:03:01]}  Nc6 {[%clk 0:03:01]} 5. Nf3 {[%clk 0:03:01]}  Qb6 {[%clk 0:03:01]} 6. Bd3 {[%clk 0:03:01]}  cxd4 {[%clk 0:03:01]} 7. O-O {[%clk 0:03:01]}  Bd7 {[%clk 0:03:02]} 8. Re1 {[%clk 0:03:00]}  Rc8 {[%clk 0:03:02]} 9. a3 {[%clk 0:03:00]}  Nge7 {[%clk 0:03:02]} 10. b4 {[%clk 0:03:00]}  a6 {[%clk 0:03:02]} 11. Bb2 {[%clk 0:02:59]}  dxc3 {[%clk 0:02:41]} 12. Nxc3 {[%clk 0:03:00]}  Qd8 {[%clk 0:02:42]} 13. Rc1 {[%clk 0:02:52]}  Ng6 {[%clk 0:02:41]} 14. Na4 {[%clk 0:02:48]}  Be7 {[%clk 0:02:40]} 15. Nc5 {[%clk 0:02:47]}  Bxc5 {[%clk 0:02:40]} 16. Rxc5 {[%clk 0:02:47]}  O-O {[%clk 0:02:41]} 17. Rc3 {[%clk 0:02:22]}  Na7 {[%clk 0:02:39]} 18. Rxc8 {[%clk 0:02:13]}  Nxc8 {[%clk 0:02:37]} 19. Bd4 {[%clk 0:02:10]}  Bb5 {[%clk 0:02:29]} 20. Bb1 {[%clk 0:02:05]}  Re8 {[%clk 0:02:21]} 21. a4 {[%clk 0:01:51]}  Bc4 {[%clk 0:02:20]} 22. Qc2 {[%clk 0:01:47]}  b5 {[%clk 0:02:15]} 23. a5 {[%clk 0:01:42]}  Nce7 {[%clk 0:02:14]} 24. h4 {[%clk 0:01:41]}  Nc6 {[%clk 0:01:53]} 25. Bb6 {[%clk 0:01:37]}  Qd7 {[%clk 0:01:29]} 26. Bc5 {[%clk 0:01:31]}  f5 {[%clk 0:01:15]} 27. exf6 {[%clk 0:01:26]}  gxf6 {[%clk 0:01:14]} 28. Qd2 {[%clk 0:01:10]}  Qg7 {[%clk 0:01:12]} 29. h5 {[%clk 0:00:57]}  Nge5 {[%clk 0:01:11]} 30. Nh2 {[%clk 0:00:50]}  Kh8 {[%clk 0:01:01]} 31. h6 {[%clk 0:00:44]}  Qf7 {[%clk 0:00:56]} 32. f4 {[%clk 0:00:41]}  Nd7 {[%clk 0:00:50]} 33. Bd6 {[%clk 0:00:38]}  e5 {[%clk 0:00:46]} 34. fxe5 {[%clk 0:00:32]}  fxe5 {[%clk 0:00:47]} 35. Nf3 {[%clk 0:00:22]}  Qf6 {[%clk 0:00:38]} 36. Bc5 {[%clk 0:00:20]}  Rg8 {[%clk 0:00:29]} 37. Kh1 {[%clk 0:00:19]}  e4 {[%clk 0:00:20]} 38. Nd4 {[%clk 0:00:18]}  Nxd4 {[%clk 0:00:20]} 39. Bxd4 {[%clk 0:00:18]}  Ne5 {[%clk 0:00:19]} 40. Qe3 {[%clk 0:00:16]}  Rg5 {[%clk 0:00:18]} 41. g3 {[%clk 0:00:16]}  Qxh6+ {[%clk 0:00:18]} 42. Kg2 {[%clk 0:00:16]}  Qg6 {[%clk 0:00:16]} 43. Rh1 {[%clk 0:00:15]}  Kg8 {[%clk 0:00:16]} 44. Rh4 {[%clk 0:00:15]}  Nf3 {[%clk 0:00:15]} 45. Rf4 {[%clk 0:00:14]}  Rxg3+ {[%clk 0:00:14]} 46. Kf2 {[%clk 0:00:13]}  Rg2# {[%clk 0:00:14]} 0-1

[Event "January 2 Late 2024"]
[Site "https://www.chess.com"]
[Date "2024.01.02"]
[Round "3"]
[White "Achuthan, Aryan"]
[Black "Bijaoui, Manuel"]
[Result "1-0"]
[Board "178"]
[TimeControl "180+1"]
[WhiteFideId "30982294"]
[BlackFideId "626783"]
[WhiteElo "2319"]
[BlackElo "2513"]
[WhiteTeam "USA"]
[BlackTeam "FRA"]
[WhiteClock "0:00:38"]
[BlackClock "0:01:34"]

1. d4 {[%clk 0:03:00]}  Nf6 {[%clk 0:02:59]} 2. c4 {[%clk 0:03:01]}  g6 {[%clk 0:02:59]} 3. Nc3 {[%clk 0:03:02]}  Bg7 {[%clk 0:03:00]} 4. e4 {[%clk 0:03:02]}  d6 {[%clk 0:03:00]} 5. Nge2 {[%clk 0:03:03]}  O-O {[%clk 0:03:00]} 6. f3 {[%clk 0:03:03]}  c5 {[%clk 0:03:01]} 7. d5 {[%clk 0:03:04]}  e6 {[%clk 0:03:01]} 8. Ng3 {[%clk 0:03:04]}  exd5 {[%clk 0:03:02]} 9. cxd5 {[%clk 0:03:05]}  a6 {[%clk 0:03:02]} 10. a4 {[%clk 0:03:05]}  Re8 {[%clk 0:03:02]} 11. Be2 {[%clk 0:03:06]}  h5 {[%clk 0:03:02]} 12. O-O {[%clk 0:03:06]}  h4 {[%clk 0:03:02]} 13. Nh1 {[%clk 0:03:07]}  Nbd7 {[%clk 0:03:01]} 14. Nf2 {[%clk 0:03:07]}  Nh7 {[%clk 0:03:01]} 15. Kh1 {[%clk 0:03:00]}  f5 {[%clk 0:03:01]} 16. exf5 {[%clk 0:03:01]}  gxf5 {[%clk 0:03:02]} 17. f4 {[%clk 0:02:58]}  Ndf6 {[%clk 0:02:55]} 18. Bf3 {[%clk 0:02:56]}  Bd7 {[%clk 0:02:54]} 19. Qd3 {[%clk 0:02:33]}  b5 {[%clk 0:02:49]} 20. axb5 {[%clk 0:02:33]}  axb5 {[%clk 0:02:50]} 21. Rxa8 {[%clk 0:02:34]}  Qxa8 {[%clk 0:02:50]} 22. Nxb5 {[%clk 0:01:58]}  c4 {[%clk 0:02:05]} 23. Qxc4 {[%clk 0:01:40]}  Rc8 {[%clk 0:02:05]} 24. Qd3 {[%clk 0:01:29]}  Bxb5 {[%clk 0:01:59]} 25. Qxb5 {[%clk 0:01:30]}  Qa1 {[%clk 0:01:59]} 26. Nd3 {[%clk 0:01:22]}  Ne4 {[%clk 0:01:57]} 27. Qd7 {[%clk 0:01:09]}  Nf2+ {[%clk 0:01:48]} 28. Nxf2 {[%clk 0:01:02]}  Rxc1 {[%clk 0:01:47]} 29. Qe6+ {[%clk 0:00:48]}  Kh8 {[%clk 0:01:46]} 30. Qc8+ {[%clk 0:00:39]}  Nf8 {[%clk 0:01:34]} 31. Qxc1 {[%clk 0:00:38]} 1-0

[Event "January 2 Late 2024"]
[Site "https://www.chess.com"]
[Date "2024.01.02"]
[Round "3"]
[White "Stojanovski, Sandi"]
[Black "Curtis, John"]
[Result "1-0"]
[Board "180"]
[TimeControl "180+1"]
[WhiteFideId "1403249"]
[BlackFideId "3200256"]
[WhiteElo "2502"]
[BlackElo "2219"]
[WhiteTeam "DEN"]
[BlackTeam "AUS"]
[WhiteClock "0:00:08"]
[BlackClock "0:00:00"]

1. d3 {[%clk 0:03:00]}  d5 {[%clk 0:02:59]} 2. Nf3 {[%clk 0:03:01]}  Bf5 {[%clk 0:02:57]} 3. g3 {[%clk 0:03:01]}  c6 {[%clk 0:02:56]} 4. Bg2 {[%clk 0:03:01]}  h6 {[%clk 0:02:57]} 5. O-O {[%clk 0:03:01]}  Nf6 {[%clk 0:02:57]} 6. c4 {[%clk 0:03:02]}  e6 {[%clk 0:02:57]} 7. cxd5 {[%clk 0:03:03]}  exd5 {[%clk 0:02:57]} 8. Nc3 {[%clk 0:03:03]}  Be7 {[%clk 0:02:57]} 9. e4 {[%clk 0:03:03]}  dxe4 {[%clk 0:02:55]} 10. dxe4 {[%clk 0:03:03]}  Qxd1 {[%clk 0:02:55]} 11. Rxd1 {[%clk 0:03:04]}  Nxe4 {[%clk 0:02:48]} 12. Nd4 {[%clk 0:03:03]}  Nxc3 {[%clk 0:02:48]} 13. bxc3 {[%clk 0:03:03]}  Bd7 {[%clk 0:02:47]} 14. Re1 {[%clk 0:03:02]}  Kd8 {[%clk 0:02:43]} 15. Rb1 {[%clk 0:03:01]}  Bc8 {[%clk 0:02:38]} 16. Bf4 {[%clk 0:02:53]}  Nd7 {[%clk 0:02:13]} 17. Bxc6 {[%clk 0:02:51]}  Nc5 {[%clk 0:02:03]} 18. Rbd1 {[%clk 0:02:44]}  Bd7 {[%clk 0:02:03]} 19. Bxb7 {[%clk 0:02:38]}  Nxb7 {[%clk 0:01:55]} 20. Nc6+ {[%clk 0:02:37]}  Kc8 {[%clk 0:01:52]} 21. Nxe7+ {[%clk 0:02:36]}  Kd8 {[%clk 0:01:52]} 22. Nf5 {[%clk 0:01:13]}  g5 {[%clk 0:01:37]} 23. Be5 {[%clk 0:01:11]}  Rf8 {[%clk 0:00:48]} 24. Bg7 {[%clk 0:00:50]}  Rg8 {[%clk 0:00:45]} 25. Bf6+ {[%clk 0:00:43]}  Kc8 {[%clk 0:00:43]} 26. Ne7+ {[%clk 0:00:40]}  Kc7 {[%clk 0:00:44]} 27. Be5+ {[%clk 0:00:38]}  Kb6 {[%clk 0:00:36]} 28. Nxg8 {[%clk 0:00:36]}  Be6 {[%clk 0:00:35]} 29. Nf6 {[%clk 0:00:33]}  Ka6 {[%clk 0:00:34]} 30. a3 {[%clk 0:00:32]}  Rc8 {[%clk 0:00:33]} 31. Ne4 {[%clk 0:00:31]}  g4 {[%clk 0:00:28]} 32. Nd6 {[%clk 0:00:30]}  Nxd6 {[%clk 0:00:27]} 33. Rxd6+ {[%clk 0:00:30]}  Ka5 {[%clk 0:00:27]} 34. Rxe6 {[%clk 0:00:29]}  fxe6 {[%clk 0:00:27]} 35. Bd4 {[%clk 0:00:29]}  Rc6 {[%clk 0:00:26]} 36. Re5+ {[%clk 0:00:29]}  Ka4 {[%clk 0:00:27]} 37. Bxa7 {[%clk 0:00:21]}  Kxa3 {[%clk 0:00:23]} 38. Bd4 {[%clk 0:00:19]}  Kb3 {[%clk 0:00:24]} 39. Rh5 {[%clk 0:00:18]}  Kc4 {[%clk 0:00:24]} 40. Rxh6 {[%clk 0:00:18]}  Kd5 {[%clk 0:00:20]} 41. Rh5+ {[%clk 0:00:17]}  Ke4 {[%clk 0:00:19]} 42. Kg2 {[%clk 0:00:17]}  Ra6 {[%clk 0:00:18]} 43. Re5+ {[%clk 0:00:16]}  Kd3 {[%clk 0:00:18]} 44. Rg5 {[%clk 0:00:17]}  Ke4 {[%clk 0:00:10]} 45. Rxg4+ {[%clk 0:00:16]}  Kd5 {[%clk 0:00:10]} 46. Rg5+ {[%clk 0:00:16]}  Ke4 {[%clk 0:00:10]} 47. h4 {[%clk 0:00:16]}  Ra8 {[%clk 0:00:08]} 48. h5 {[%clk 0:00:15]}  e5 {[%clk 0:00:06]} 49. Rxe5+ {[%clk 0:00:15]}  Kd3 {[%clk 0:00:07]} 50. g4 {[%clk 0:00:14]}  Rg8 {[%clk 0:00:06]} 51. Kg3 {[%clk 0:00:14]}  Ra8 {[%clk 0:00:05]} 52. h6 {[%clk 0:00:13]}  Ra3 {[%clk 0:00:05]} 53. h7 {[%clk 0:00:12]}  Kc4 {[%clk 0:00:06]} 54. h8=Q {[%clk 0:00:11]}  Kb3 {[%clk 0:00:06]} 55. Qg8+ {[%clk 0:00:10]}  Kc2 {[%clk 0:00:06]} 56. Re2+ {[%clk 0:00:10]}  Kd3 {[%clk 0:00:00]} 57. Qe6 {[%clk 0:00:08]} 1-0